Cogmind - Beta 9.3 @@@ ROGUE MODE // 2020.01.07 @ 17:00:53 Player: derk Result: Self-destructed Performance ------------- Evolutions (1) 500 Regions Visited (3) 600 Robots Destroyed (25) 125 Value Destroyed (660) 660 Prototype IDs (3) 60 Alien Tech Used (0) 0 Bonus (60) 60 TOTAL SCORE: 2005 Bonus ------- Follower Combat Kills 60 Cogmind --------- Core Integrity 250/400 Matter 274/300 Energy 100/100 System Corruption 0% Temperature Cool (0) Movement Core (550) Ox10 Location -9/Materials Parts ------- > --- POWER (1) -------- (None) > --- PROPULSION (2) --- (None) > --- UTILITY (4) ------ Large Storage Unit Large Storage Unit > --- WEAPON (2) ------- (None) > --- INVENTORY (16) --- Large Storage Unit High-capacity Matter Pod (116) Peak State ------------ > --- POWER ------------ Light Nuclear Core > --- PROPULSION ------- Wheel Wheel > --- UTILITY ---------- Large Storage Unit Light Armor Plating > --- WEAPON ----------- Small Laser Light Assault Rifle > --- INVENTORY -------- Light Ion Engine Light Treads Light Treads Wheel Large Storage Unit Large Storage Unit High-capacity Matter Pod Light Armor Plating Light Cannon Grenade Launcher [Rating: 10] Favorites ----------- Power Light Ion Engine Engine Light Ion Engine Power Core Light Nuclear Core Propulsion Light Treads Treads Light Treads Wheel Wheel Utility Large Storage Unit Storage Large Storage Unit Protection Light Armor Plating Weapon Light Assault Rifle Energy Gun Particle Gun Ballistic Gun Light Assault Rifle Ballistic Cannon Light Cannon Launcher Grenade Launcher Build | -11 -10 -10 -9 ------- Run | Scr Mat Min Mat Slots Evolved 2 | . . . 2 Power . | . . . . Propulsion . | . . . . Utility 2 | . . . 2 Weapon . | . . . . Parts Attached 32 | 7 9 12 4 Power 5 | 1 2 2 . Engine 4 | 1 2 1 . Core 1 | . . 1 . Reactor . | . . . . Propulsion 10 | 2 2 4 2 Treads 4 | . 2 2 . Leg . | . . . . Wheel 6 | 2 . 2 2 Hover . | . . . . Flight . | . . . . Utility 7 | 2 2 1 2 Device . | . . . . Storage 5 | 2 2 . 1 Processor . | . . . . Hackware . | . . . . Protection 2 | . . 1 1 Artifact . | . . . . Weapon 10 | 2 3 5 . Energy Gun 3 | 1 1 1 . Energy Cannon . | . . . . Ballistic Gun 4 | 1 2 1 . Ballistic Cannon 1 | . . 1 . Launcher 2 | . . 2 . Special Weapon . | . . . . Impact Weapon . | . . . . Slashing Weapon . | . . . . Piercing Weapon . | . . . . Special Melee Weapon . | . . . . Unidentified Prototypes . | . . . . Parts Lost 15 | . 1 9 5 Power 2 | . . 2 . Propulsion 5 | . . 2 3 Utility 2 | . . 1 1 Weapon 6 | . 1 4 1 Highest Loss Streak 4 | . 1 4 4 Average Slot Usage (%) 94 | . 99 91 56 Engine 12 | . 14 11 . Treads 20 | . 27 10 5 Wheel 6 | . . 16 9 Storage 25 | . 28 20 22 Protection 2 | . . 7 10 Energy Gun 8 | . 11 6 . Ballistic Gun 11 | . 16 4 . Ballistic Cannon 1 | . . 3 10 Launcher 2 | . . 7 . Naked Turns . | . . . . Heaviest Build 41 | 13 39 41 38 Greatest Support 40 | 20 40 40 20 Greatest Overweight (x) 11 | . . 1 11 Average Overweight (x) . | . . . 3 Largest Inventory Capacity 16 | 8 16 16 16 Average Capacity 13 | 5 13 12 16 Most Carried 14 | 4 14 13 5 Average Carried 8 | 2 9 9 2 Final Capacity 16 | 8 16 10 16 Final Carried 13 | 4 13 6 2 Class Distribution -------------------- 96% | Mutant 3% | Scavenger-Mutant Dominant Class ---------------- Mutant | -10/Materials Mutant | -10/Mines Mutant | -9/Materials Resources | -11 -10 -10 -9 ----------- Run | Scr Mat Min Mat Matter Collected 707 | 272 139 296 . Remotely . | . . . . Salvage Created 782 | 60 479 200 43 Parts 60 | 3 48 7 2 Haulers Intercepted 1 | . 1 . . Recyclers Shooed 1 | . . 1 . Parts Field Recycled . | . . . . Retrieved Matter . | . . . . Parts Self-Destructed . | . . . . Prevented . | . . . . Kills | -11 -10 -10 -9 ------- Run | Scr Mat Min Mat Combat Hostiles Destroyed 21 | . 14 6 1 Guns 16 | . 14 2 . Cannons 3 | . . 2 1 AOE 2 | . . 2 . Classes Destroyed 6 | 1 5 . . Worker 1 | . 1 . . Hauler 1 | . 1 . . Recycler 1 | 1 . . . Watcher 1 | . 1 . . Swarmer 6 | . 6 . . Grunt 15 | . 8 6 1 Best Kill Streak 5 | 1 5 2 1 Combat Bots Only 3 | . 3 2 1 Max Kills in Single Turn 1 | 1 1 1 1 Gunslinging . | . . . . Exploded 1 | . . 1 . Melee . | . . . . Uniques/NPCs Destroyed . | . . . . Combat | -11 -10 -10 -9 -------- Run | Scr Mat Min Mat Damage Taken 1702 | . 504 712 486 Core 368 | . 105 113 150 Absorbed by Shields . | . . . . Core Remaining (%) 56 | 100 . 12 . Volleys Fired 82 | 2 43 32 5 Largest 2 | 2 2 2 1 Hottest 85 | 60 85 75 35 Shots Fired 136 | 4 82 45 5 Gun 112 | 4 82 26 . Cannon 20 | . . 15 5 Launcher 4 | . . 4 . Special . | . . . . Kinetic 96 | 2 64 25 5 Thermal 36 | 2 18 16 . Explosive 4 | . . 4 . Electromagnetic . | . . . . Robot Hit Streak 15 | 3 15 7 3 Robot Miss Streak 3 | . 3 2 1 Penetration Max . | . . . . Secondary Targets 1 | . . 1 . Max Gunslinging Chain 1 | . . 1 . Shots Hit Robots 83 | 3 57 20 3 Core Hits 51 | 2 29 18 2 Critical Hits 1 | . . 1 . Critical Kills . | . . . . Critical Parts Destroyed 1 | . . 1 . Melee Attacks . | . . . . Impact . | . . . . Slashing . | . . . . Piercing . | . . . . Sneak Attacks . | . . . . Combat Hostiles . | . . . . Follow-up Attacks . | . . . . Damage Inflicted 1176 | 32 523 569 52 Guns 696 | 32 523 141 . Cannons 250 | . . 203 47 Explosions 211 | . . 211 . Melee . | . . . . Ramming 19 | . . 14 5 Kinetic 627 | 8 337 235 47 Thermal 319 | 24 186 109 . Explosive 211 | . . 211 . Electromagnetic . | . . . . Impact . | . . . . Slashing . | . . . . Piercing . | . . . . Highest Corruption . | . . . . Average Corruption . | . . . . Corruption Purged . | . . . . Overload Shots . | . . . . Overflow Damage 7 | . . 7 . Projectiles 4 | . . 4 . Explosions 3 | . . 3 . Melee . | . . . . Knockbacks 1 | . . 1 . Impact 1 | . . 1 . Kinetic . | . . . . Secondary . | . . . . Self-Inflicted Damage 16 | . . 14 2 Shots 1 | . . 1 . Rammed 7 | . . 5 2 Targets Rammed 7 | . . 5 2 Kicked . | . . . . Crushed . | . . . . Highest Temperature 274 | 40 184 274 7 Average Temperature 94 | 24 43 149 4 Received Heat Transfer 636 | . 186 258 192 Effects 1 | . . 1 . Energy Bleed 1 | . . 1 . Siege Activations . | . . . . Robots Corrupted . | . . . . Combat Hostiles . | . . . . Parts Fried . | . . . . Impact Corruptions . | . . . . Robots Melted . | . . . . Combat Hostiles . | . . . . Parts Melted 2 | . 2 . . Heat Transferred 745 | 50 445 250 . Parts Sabotaged . | . . . . Parts Stolen . | . . . . Parts Stripped . | . . . . Power Chain Reactions . | . . . . Missiles Intercepted . | . . . . Alert | -11 -10 -10 -9 ------- Run | Scr Mat Min Mat Peak Influence 309 | 5 309 118 30 Average Influence 96 | 1 139 41 13 Maximum Alert Level 1 | . 1 . . Low Security (%) 83 | 100 72 100 100 Level 1 16 | . 27 . . Level 2 . | . . . . Level 3 . | . . . . Level 4 . | . . . . Level 5 . | . . . . High Security . | . . . . Max Security . | . . . . Squads Dispatched 6 | . 5 . 1 Investigation 5 | . 4 . 1 Extermination . | . . . . Reinforcement 1 | . 1 . . Assault . | . . . . Garrison . | . . . . Intercept . | . . . . Construction Impeded . | . . . . Haulers Reinforced . | . . . . Stealth | -11 -10 -10 -9 --------- Run | Scr Mat Min Mat Distress Signals 3 | . 1 . 2 Communications Jammed . | . . . . Distress Signals . | . . . . Times Spotted 60 | . 25 24 11 Peak Tracking Total 11 | . 5 9 11 Tactical Retreats 2 | . 2 . . Traps | -11 -10 -10 -9 ------- Run | Scr Mat Min Mat Traps Triggered 2 | . 1 . 1 Indirectly . | . . . . Trap Hack Attempts . | . . . . Triggered . | . . . . Disarmed . | . . . . Reprogrammed . | . . . . Reused . | . . . . Traps Extracted . | . . . . Installed . | . . . . Triggered . | . . . . Machines | -11 -10 -10 -9 ---------- Run | Scr Mat Min Mat Machines Disabled . | . . . . Max in Single Turn . | . . . . Machines Sabotaged . | . . . . Garrisons Compromised . | . . . . Overloaded Fab Kills . | . . . . Fab Network Shutdowns . | . . . . Hacking | -11 -10 -10 -9 --------- Run | Scr Mat Min Mat Machines Accessed 5 | . 5 . . Terminals 5 | . 5 . . Fabricators . | . . . . Repair Stations . | . . . . Recycling Units . | . . . . Scanalyzers . | . . . . Garrison Access . | . . . . Total Hacks 22 | . 22 . . Successful 10 | . 10 . . Failed 12 | . 12 . . Catastrophic 1 | . 1 . . Database Lockouts . | . . . . Manual 10 | . 10 . . Terminals 22 | . 22 . . Fabricators . | . . . . Repair Stations . | . . . . Recycling Units . | . . . . Scanalyzers . | . . . . Garrison Access . | . . . . Terminal Hacks 6 | . 6 . . Prototype ID Bank 2 | . 2 . . Unreport Threat 2 | . 2 . . Locate Traps 1 | . 1 . . Zone Layout 1 | . 1 . . Fabricator Hacks . | . . . . Repair Station Hacks . | . . . . Recycling Unit Hacks . | . . . . Scanalyzer . | . . . . Garrison Access Hacks . | . . . . Unauthorized Hacks 12 | . 12 . . Terminals 4 | . 4 . . Botnet 4 | . 4 . . Fabricators . | . . . . Repair Stations . | . . . . Recycling Units . | . . . . Scanalyzers . | . . . . Garrison Access . | . . . . Data Cores Recovered . | . . . . Used . | . . . . Hacking Detections 5 | . 5 . . Full Trace Events 3 | . 3 . . Feedback Events . | . . . . Feedback Blocked . | . . . . Robot Schematics Acquired . | . . . . Robots Built . | . . . . Matter . | . . . . Time . | . . . . Total Robot Build Rating . | . . . . Part Schematics Acquired . | . . . . Parts Built . | . . . . Matter . | . . . . Time . | . . . . Total Part Build Rating . | . . . . Parts Repaired . | . . . . Time . | . . . . Parts Recycled . | . . . . Recycled Matter . | . . . . Retrieved Matter . | . . . . Retrieved Components . | . . . . Parts Scanalyzed . | . . . . Part Schematics Acquired . | . . . . Parts Damaged . | . . . . Bothacking | -11 -10 -10 -9 ------------ Run | Scr Mat Min Mat Used RIF Installer . | . . . . Robots Hacked . | . . . . Non-combat . | . . . . Combat . | . . . . Robot Hacks Applied . | . . . . Relay Couplers Released . | . . . . Robots Rewired . | . . . . Allies Hacked . | . . . . Hacks Repelled . | . . . . Allies | -11 -10 -10 -9 -------- Run | Scr Mat Min Mat Total Allies 2 | . . 2 . Largest Group 2 | . . 2 . Highest-Rated Group 47 | . . 47 . Highest-Rated Ally 31 | . . 31 . Total Orders . | . . . . Ally Attacks 10 | . . 10 . Total Damage 186 | . . 186 . Kills 2 | . . 2 . Allies Corrupted . | . . . . Allies Melted . | . . . . Intel | -11 -10 -10 -9 ------- Run | Scr Mat Min Mat Robot Analysis Total . | . . . . Derelict Logs Recovered 2 | . . 2 . Drone Launches . | . . . . Drone Recoveries . | . . . . Exploration | -11 -10 -10 -9 ------------- Run | Scr Mat Min Mat Turns Passed 1825 | 61 1090 550 124 Spaces Moved 1106 | 52 594 371 89 Core 4 | 3 . . 1 Treads 656 | . 549 107 . Legs . | . . . . Wheels 446 | 49 45 264 88 Hover . | . . . . Flight . | . . . . Fastest Speed 50 | 50 80 90 90 Average Speed 133 | 78 153 112 115 Slowest Speed 600 | 80 160 180 600 Overloaded Moves . | . . . . Propulsion Burnouts . | . . . . Robots Hopped . | . . . . Cave-ins Triggered . | . . . . Exploration Rate (%) 49 | 5 94 84 14 Regions Visited 3 Branch Regions 1 Pre-discovered Areas . | . . . . Known Exits Taken . | . . . . Unknown Exits Taken 3 | 1 1 1 . Scrap Searched . | . . . . Spaces Dug 10 | . . 10 . Terrain Destroyed 34 | . . 34 . Melee . | . . . . Projectile . | . . . . AOE 34 | . . 34 . Actions | -11 -10 -10 -9 --------- Run | Scr Mat Min Mat Total 1325 | 64 702 459 100 Wait 71 | . 34 37 . Move 1103 | 51 593 370 89 Hop . | . . . . Pick Up 18 | 4 14 . . Fast Attach 10 | 7 2 1 . Attach 10 | . 1 5 4 Detach . | . . . . Swap 12 | . 6 6 . Drop 12 | . 9 3 . Fire 82 | 2 43 32 5 Melee . | . . . . Ram 5 | . . 3 2 Kick . | . . . . Crush 2 | . . 2 . Escape Stasis . | . . . . Rewire . | . . . . Trap . | . . . . Miscellaneous . | . . . . Route ------- -11/Scrapyard -10/Materials (discovered 5 exits: [*Mat x3] / [*Min x2]) -10/Mines (discovered 2 exits: [*Mat x2]) -9/Materials (discovered 2 exits: Mat x2) History --------- Turn | Location | Event 2 | -11/Scrapyard | Met Revision 17 9 | -11/Scrapyard | Discovered new exit (range 15) 62 | -11/Scrapyard | Entered Materials 198 | -10/Materials | Discovered new exit (range 16) 303 | -10/Materials | Build established: Mutant 448 | -10/Materials | Discovered new exit (range 14) 477 | -10/Materials | Discovered new exit (range 16) 869 | -10/Materials | Discovered new exit (range 16) 919 | -10/Materials | Discovered new exit (range 7) 1152 | -10/Materials | Entered Mines 1202 | -10/Mines | Assembled infested the area 1207 | -10/Mines | Assisted by a Guerilla fighting off Assembled 1239 | -10/Mines | Core integrity fell below 50% 1578 | -10/Mines | Core integrity fell below 20% 1598 | -10/Mines | Lost 4 parts (1p1n2w) 1611 | -10/Mines | Discovered new exit (range 9) 1614 | -10/Mines | Discovered new exit (range 10) 1625 | -10/Mines | Learned Materials stockpile data 1638 | -10/Mines | Learned 4 Materials zone layouts 1702 | -10/Mines | Entered Materials 1702 | -9/Materials | Evolved 2 slots: Utility x2 1703 | -9/Materials | Identified exit to Materials 1714 | -9/Materials | Lost 4 parts (1p1n1u1w) 1826 | -9/Materials | Self-destructed Last Messages --------------- 01768_ T-07 Excavator is excavating. 01776_ U-05 Engineer lays Concrete. 01783_ W-16 Scout sends out distress signal. 01783_ K-01 Serf collects debris. 01790_ Triggered Alarm Trap. 01790_ An alarm sounds. 01790_ ALERT: Alarm triggered, dispatching investigation squad. 01791_ U-05 Engineer destroyed. 01792_ R-06 Scavenger collects Wheel. 01793_ W-16 Scout sends out distress signal. 01804_ Wheel destroyed. 01808_ G-47 Trooper destroyed. 01810_ R-06 Scavenger collects Imp. Heat Sink. 01813_ C-30 ARC bursts open, deploying its payload. 01813_ L-31 Rogue unfolds itself. 01813_ G-34 Mercenary unfolds itself. 01813_ Lgt. Cannon destroyed. 01814_ R-06 Scavenger collects Lgt. Nuclear Core. 01819_ Lgt. Armor Plating destroyed. 01820_ Slammed into L-31 Rogue. Map ----- +----------------------------------------------------+ | ?????????????????????????????????????????????????? | | ?????????????????????????????????????????????????? | | ?????????????????????????????????????????????????? | | ?????????????????????????????????????????????????? | | ?????????????????????????????????????????????????? | | ?????????????????????????????????????????????????? | | ?????????????????????????????????????????????????? | | ?????????????????????????????????????????????????? | | ?????????????????????????????????????????????????? | | ?????????????????????????????????????????????????? | | ?????????????????????????????????????????????????? | | ?????????????????????????????????????????????????? | | ?????????????????????????????????????????????????? | | ?????????????????????????????????????????????????? | | ?????????????????????????????????????????????????? | | ?????????????????????????????????????????????????? | | ?????????????????????????????????????????????????? | | ??????????????????????#######???##???????????????? | | ?????????????????????? g% ?? ????????????????? | | ??????????????????????? ?? ?????????????????? | | ??????????????????????? ?? ??????????????????? | | ??????????????????? "## ##+######= """?????? | | ??????????????????? "## # """ ## """?????? | | ???????????????????"""## # "R" ## ?????? | | ???????????????????##### gr " " ## ?????? | | ???????????????????????#l@%# + ?????? | | ?????????? ??????##### # ###"T"### ?????? | | #????????# #????? ## # #?#####?##?????? | | ???????? +????? ## ########??????###?????? | | ????????? #????? ## #?????????????# ?????? | | ????????? #????? ## r########??????# ?????? | | ?????????# #????? ## # #??????# ?????? | | ?????????# #????? ## # #??????# ?????? | | ?????????# #????? ## # #??????# ?????? | | ?????????# #????? ## + """ #??????# ?????? | | ?????????# #????? ## g # """ #??????# ?????? | | ?????????# ###########gY # """ #??????# ?????? | | ?????????# ########??????###?????? | | ####+##### ######+####???????????##?????? | | ! #?# #???????????# ?????? | | !% #?# #???????????# ?????? | | #?# """" #???????????# ?????? | | #### ########+### #?# """" #???????????# ?????? | | ??# #???# # #?# """" #???????????# ?????? | | ??# ##???# """ # ###########???????????##?????? | | ??####????# """ # # #########?????????????? | | ??????????# """ # #????????????????????????## | | ??????????# # #????????????????????????# | | ??????????# """ # #????????????????????????## | | ??????????# """ # +?????????????????????????# "T | +----------------------------------------------------+ Best States ------------- Heat Dissipation 28 Energy Generation 14 Energy Capacity 160 Matter Stores 300 Matter Capacity 300 Sight Range 16 Terrain Scan Density 10 Armor Coverage 150 Evasion (%) 44 Recoil Reduction 2 Item Schematics ----------------- None Robot Schematics ------------------ None Fabricated ------------ Nothing Alien Tech Used ----------------- None Achievements -------------- I Survived The Infestation Party Time Challenges ------------ None Game ------ Seed StructuralChainWarhead Manual? 0 Play Time 00:23:49 Cumulative 16.9 hours Start 2020.01.07 @ 16:38:13 End 2020.01.07 @ 17:00:53 Sessions 1 Manual Loads 0 Difficulty Rogue Special Mode None Game No. 7 Rogue 7 Adventurer 0 Explorer 0 Win Type - Total 0 Types 0/0/0/0/0/0/0 Lore% 16 Gallery% 26 Achievement% 24 Wizard Run 0 Options --------- ASCII 0 Keyboard 0 Movement Numpad Keybinds 0 Fullscreen 1 Font 18/SmallcapsGlow Map View 76x50 Tactical HUD 1 Map Filters NONE Filters NONE Steam 1 RUN: 9a9ecd84-902b-40cc-beb7-d52f039e17e8